{"text_format":"3","workbook":"xlsx","n_sheets":2,"sheets":["Kāzu budžets","Budžeta informācija"],"not_rendered":{"charts":1,"images":1,"defined_names":2},"read":"whole","date_system":"1900"}

{"sheet":"Kāzu budžets","index":0,"n_rows":16,"n_cols":16,"rows_kept":16,"merged":[[1,1,1,5]]}
[{"$nulls":6}," "]
[null,"LĪZA + UN DANIELS\nLAULĪBAS"]
[{"$nulls":7}," "]
[]
[null,"KATEGORIJA","APRĒĶINĀTĀS IZMAKSAS","FAKTISKĀS IZMAKSAS","NOVIRZE","BUDŽETA %",{"$nulls":3},"Nešķirots","Aprēķinātās izmaksas","Faktiskās izmaksas","Aprēķinātās izmaksas — vērtējuma vērtība","Vērtējums","#","Kārtots"]
[null,{"$f":"P6","v":"Svinības"},{"$f":"VLOOKUP(TBL_Summary[[#This Row],[KATEGORIJA]],TBL_RankingData,2,FALSE)","v":{"v":14500,"d":"14,500 EUR"}},{"$f":"IF(VLOOKUP(TBL_Summary[[#This Row],[KATEGORIJA]],TBL_RankingData,3,FALSE)=0,\"\",VLOOKUP(TBL_Summary[[#This Row],[KATEGORIJA]],TBL_RankingData,3,FALSE))","v":{"v":12800,"d":"12,800 EUR"}},{"$f":"IF(OR(TBL_Summary[[#This Row],[APRĒĶINĀTĀS IZMAKSAS]]=\"\",TBL_Summary[[#This Row],[FAKTISKĀS IZMAKSAS]]=\"\"),\"\",TBL_Summary[[#This Row],[APRĒĶINĀTĀS IZMAKSAS]]-TBL_Summary[[#This Row],[FAKTISKĀS IZMAKSAS]])","v":{"v":1700,"d":"1,700 EUR"}},{"$f":"TBL_Summary[[#This Row],[APRĒĶINĀTĀS IZMAKSAS]]/SUM(TBL_Summary[APRĒĶINĀTĀS IZMAKSAS])","v":{"v":0.48739495798319327,"d":"48.7%"}},{"$nulls":3},"Svinības",{"$f":"TBL_Svinības[[#Totals],[PROGNOZĒTIE]]","v":14500},{"$f":"TBL_Svinības[[#Totals],[FAKTISKIE]]","v":12800},{"$f":"K6-O6/100","v":14499.99},{"$f":"_xlfn.RANK.AVG(M6,$M$6:$M$15)","v":1},1,{"$f":"INDEX(TBL_RankingData,MATCH(O6,$N$6:$N$15,0),1)","v":"Svinības"}]
[null,{"$f":"P7","v":"Apģērbs"},{"$f":"VLOOKUP(TBL_Summary[[#This Row],[KATEGORIJA]],TBL_RankingData,2,FALSE)","v":{"v":4000,"d":"4,000 EUR"}},{"$f":"IF(VLOOKUP(TBL_Summary[[#This Row],[KATEGORIJA]],TBL_RankingData,3,FALSE)=0,\"\",VLOOKUP(TBL_Summary[[#This Row],[KATEGORIJA]],TBL_RankingData,3,FALSE))","v":{"v":2900,"d":"2,900 EUR"}},{"$f":"IF(OR(TBL_Summary[[#This Row],[APRĒĶINĀTĀS IZMAKSAS]]=\"\",TBL_Summary[[#This Row],[FAKTISKĀS IZMAKSAS]]=\"\"),\"\",TBL_Summary[[#This Row],[APRĒĶINĀTĀS IZMAKSAS]]-TBL_Summary[[#This Row],[FAKTISKĀS IZMAKSAS]])","v":{"v":1100,"d":"1,100 EUR"}},{"$f":"TBL_Summary[[#This Row],[APRĒĶINĀTĀS IZMAKSAS]]/SUM(TBL_Summary[APRĒĶINĀTĀS IZMAKSAS])","v":{"v":0.13445378151260504,"d":"13.4%"}},{"$nulls":3},"Apģērbs",{"$f":"TBL_Apģērbs[[#Totals],[PROGNOZĒTIE]]","v":4000},{"$f":"TBL_Apģērbs[[#Totals],[FAKTISKIE]]","v":2900},{"$f":"K7-O7/100","v":3999.98},2,2,"Apģērbs"]
[null,"Ziedi un rotājumi",{"$f":"VLOOKUP(TBL_Summary[[#This Row],[KATEGORIJA]],TBL_RankingData,2,FALSE)","v":{"v":3000,"d":"3,000 EUR"}},{"$f":"IF(VLOOKUP(TBL_Summary[[#This Row],[KATEGORIJA]],TBL_RankingData,3,FALSE)=0,\"\",VLOOKUP(TBL_Summary[[#This Row],[KATEGORIJA]],TBL_RankingData,3,FALSE))","v":""},{"$f":"IF(OR(TBL_Summary[[#This Row],[APRĒĶINĀTĀS IZMAKSAS]]=\"\",TBL_Summary[[#This Row],[FAKTISKĀS IZMAKSAS]]=\"\"),\"\",TBL_Summary[[#This Row],[APRĒĶINĀTĀS IZMAKSAS]]-TBL_Summary[[#This Row],[FAKTISKĀS IZMAKSAS]])","v":""},{"$f":"TBL_Summary[[#This Row],[APRĒĶINĀTĀS IZMAKSAS]]/SUM(TBL_Summary[APRĒĶINĀTĀS IZMAKSAS])","v":{"v":0.10084033613445378,"d":"10.1%"}},{"$nulls":3},"Ziedi un rotājumi",{"$f":"TBL_ZiediUnRotājumi[[#Totals],[PROGNOZĒTIE]]","v":3000},{"$f":"TBL_ZiediUnRotājumi[[#Totals],[FAKTISKIE]]","v":0},2999.97,3,3,"Ziedi un rotājumi"]
[null,"Fotoattēli un video",{"$f":"VLOOKUP(TBL_Summary[[#This Row],[KATEGORIJA]],TBL_RankingData,2,FALSE)","v":{"v":2500,"d":"2,500 EUR"}},{"$f":"IF(VLOOKUP(TBL_Summary[[#This Row],[KATEGORIJA]],TBL_RankingData,3,FALSE)=0,\"\",VLOOKUP(TBL_Summary[[#This Row],[KATEGORIJA]],TBL_RankingData,3,FALSE))","v":""},{"$f":"IF(OR(TBL_Summary[[#This Row],[APRĒĶINĀTĀS IZMAKSAS]]=\"\",TBL_Summary[[#This Row],[FAKTISKĀS IZMAKSAS]]=\"\"),\"\",TBL_Summary[[#This Row],[APRĒĶINĀTĀS IZMAKSAS]]-TBL_Summary[[#This Row],[FAKTISKĀS IZMAKSAS]])","v":""},{"$f":"TBL_Summary[[#This Row],[APRĒĶINĀTĀS IZMAKSAS]]/SUM(TBL_Summary[APRĒĶINĀTĀS IZMAKSAS])","v":{"v":0.08403361344537816,"d":"8.4%"}},{"$nulls":3},"Mūzika",{"$f":"TBL_Mūzika[[#Totals],[PROGNOZĒTIE]]","v":1800},{"$f":"TBL_Mūzika[[#Totals],[FAKTISKIE]]","v":0},1799.96,5,4,"Fotoattēli un video"]
[null,"Mūzika",{"$f":"VLOOKUP(TBL_Summary[[#This Row],[KATEGORIJA]],TBL_RankingData,2,FALSE)","v":{"v":1800,"d":"1,800 EUR"}},{"$f":"IF(VLOOKUP(TBL_Summary[[#This Row],[KATEGORIJA]],TBL_RankingData,3,FALSE)=0,\"\",VLOOKUP(TBL_Summary[[#This Row],[KATEGORIJA]],TBL_RankingData,3,FALSE))","v":""},{"$f":"IF(OR(TBL_Summary[[#This Row],[APRĒĶINĀTĀS IZMAKSAS]]=\"\",TBL_Summary[[#This Row],[FAKTISKĀS IZMAKSAS]]=\"\"),\"\",TBL_Summary[[#This Row],[APRĒĶINĀTĀS IZMAKSAS]]-TBL_Summary[[#This Row],[FAKTISKĀS IZMAKSAS]])","v":""},{"$f":"TBL_Summary[[#This Row],[APRĒĶINĀTĀS IZMAKSAS]]/SUM(TBL_Summary[APRĒĶINĀTĀS IZMAKSAS])","v":{"v":0.06050420168067227,"d":"6.1%"}},{"$nulls":3},"Fotoattēli un video",{"$f":"TBL_FotografēšanaUnVideo[[#Totals],[PROGNOZĒTIE]]","v":2500},{"$f":"TBL_FotografēšanaUnVideo[[#Totals],[FAKTISKIE]]","v":0},2499.95,4,5,"Mūzika"]
[null,"Suvenīri un dāvanas",{"$f":"VLOOKUP(TBL_Summary[[#This Row],[KATEGORIJA]],TBL_RankingData,2,FALSE)","v":{"v":1100,"d":"1,100 EUR"}},{"$f":"IF(VLOOKUP(TBL_Summary[[#This Row],[KATEGORIJA]],TBL_RankingData,3,FALSE)=0,\"\",VLOOKUP(TBL_Summary[[#This Row],[KATEGORIJA]],TBL_RankingData,3,FALSE))","v":""},{"$f":"IF(OR(TBL_Summary[[#This Row],[APRĒĶINĀTĀS IZMAKSAS]]=\"\",TBL_Summary[[#This Row],[FAKTISKĀS IZMAKSAS]]=\"\"),\"\",TBL_Summary[[#This Row],[APRĒĶINĀTĀS IZMAKSAS]]-TBL_Summary[[#This Row],[FAKTISKĀS IZMAKSAS]])","v":""},{"$f":"TBL_Summary[[#This Row],[APRĒĶINĀTĀS IZMAKSAS]]/SUM(TBL_Summary[APRĒĶINĀTĀS IZMAKSAS])","v":{"v":0.03697478991596639,"d":"3.7%"}},{"$nulls":3},"Suvenīri un dāvanas",{"$f":"TBL_SuvenīriUnDāvanas[[#Totals],[PROGNOZĒTIE]]","v":1100},{"$f":"TBL_SuvenīriUnDāvanas[[#Totals],[FAKTISKIE]]","v":0},1099.94,6,6,"Suvenīri un dāvanas"]
[null,{"$f":"P12","v":"Laulību gredzeni"},{"$f":"VLOOKUP(TBL_Summary[[#This Row],[KATEGORIJA]],TBL_RankingData,2,FALSE)","v":{"v":1100,"d":"1,100 EUR"}},{"$f":"IF(VLOOKUP(TBL_Summary[[#This Row],[KATEGORIJA]],TBL_RankingData,3,FALSE)=0,\"\",VLOOKUP(TBL_Summary[[#This Row],[KATEGORIJA]],TBL_RankingData,3,FALSE))","v":""},{"$f":"IF(OR(TBL_Summary[[#This Row],[APRĒĶINĀTĀS IZMAKSAS]]=\"\",TBL_Summary[[#This Row],[FAKTISKĀS IZMAKSAS]]=\"\"),\"\",TBL_Summary[[#This Row],[APRĒĶINĀTĀS IZMAKSAS]]-TBL_Summary[[#This Row],[FAKTISKĀS IZMAKSAS]])","v":""},{"$f":"TBL_Summary[[#This Row],[APRĒĶINĀTĀS IZMAKSAS]]/SUM(TBL_Summary[APRĒĶINĀTĀS IZMAKSAS])","v":{"v":0.03697478991596639,"d":"3.7%"}},{"$nulls":3},"Ceremonija",{"$f":"TBL_Ceremonija[[#Totals],[PROGNOZĒTIE]]","v":800},{"$f":"TBL_Ceremonija[[#Totals],[FAKTISKIE]]","v":0},799.93,8,7,"Laulību gredzeni"]
[null,"Ceremonija",{"$f":"VLOOKUP(TBL_Summary[[#This Row],[KATEGORIJA]],TBL_RankingData,2,FALSE)","v":{"v":800,"d":"800 EUR"}},{"$f":"IF(VLOOKUP(TBL_Summary[[#This Row],[KATEGORIJA]],TBL_RankingData,3,FALSE)=0,\"\",VLOOKUP(TBL_Summary[[#This Row],[KATEGORIJA]],TBL_RankingData,3,FALSE))","v":""},{"$f":"IF(OR(TBL_Summary[[#This Row],[APRĒĶINĀTĀS IZMAKSAS]]=\"\",TBL_Summary[[#This Row],[FAKTISKĀS IZMAKSAS]]=\"\"),\"\",TBL_Summary[[#This Row],[APRĒĶINĀTĀS IZMAKSAS]]-TBL_Summary[[#This Row],[FAKTISKĀS IZMAKSAS]])","v":""},{"$f":"TBL_Summary[[#This Row],[APRĒĶINĀTĀS IZMAKSAS]]/SUM(TBL_Summary[APRĒĶINĀTĀS IZMAKSAS])","v":{"v":0.02689075630252101,"d":"2.7%"}},{"$nulls":3},"Vēstuļpapīrs",{"$f":"TBL_Vēstuļpapīrs[[#Totals],[PROGNOZĒTIE]]","v":500},{"$f":"TBL_Vēstuļpapīrs[[#Totals],[FAKTISKIE]]","v":0},499.92,9,8,"Ceremonija"]
[null,"Vēstuļpapīrs",{"$f":"VLOOKUP(TBL_Summary[[#This Row],[KATEGORIJA]],TBL_RankingData,2,FALSE)","v":{"v":500,"d":"500 EUR"}},{"$f":"IF(VLOOKUP(TBL_Summary[[#This Row],[KATEGORIJA]],TBL_RankingData,3,FALSE)=0,\"\",VLOOKUP(TBL_Summary[[#This Row],[KATEGORIJA]],TBL_RankingData,3,FALSE))","v":""},{"$f":"IF(OR(TBL_Summary[[#This Row],[APRĒĶINĀTĀS IZMAKSAS]]=\"\",TBL_Summary[[#This Row],[FAKTISKĀS IZMAKSAS]]=\"\"),\"\",TBL_Summary[[#This Row],[APRĒĶINĀTĀS IZMAKSAS]]-TBL_Summary[[#This Row],[FAKTISKĀS IZMAKSAS]])","v":""},{"$f":"TBL_Summary[[#This Row],[APRĒĶINĀTĀS IZMAKSAS]]/SUM(TBL_Summary[APRĒĶINĀTĀS IZMAKSAS])","v":{"v":0.01680672268907563,"d":"1.7%"}},{"$nulls":3},"Laulību gredzeni",{"$f":"TBL_LaulībuGredzeni[[#Totals],[PROGNOZĒTIE]]","v":1100},{"$f":"TBL_LaulībuGredzeni[[#Totals],[FAKTISKIE]]","v":0},1099.91,7,9,"Vēstuļpapīrs"]
[null,"Transports",{"$f":"VLOOKUP(TBL_Summary[[#This Row],[KATEGORIJA]],TBL_RankingData,2,FALSE)","v":{"v":450,"d":"450 EUR"}},{"$f":"IF(VLOOKUP(TBL_Summary[[#This Row],[KATEGORIJA]],TBL_RankingData,3,FALSE)=0,\"\",VLOOKUP(TBL_Summary[[#This Row],[KATEGORIJA]],TBL_RankingData,3,FALSE))","v":""},{"$f":"IF(OR(TBL_Summary[[#This Row],[APRĒĶINĀTĀS IZMAKSAS]]=\"\",TBL_Summary[[#This Row],[FAKTISKĀS IZMAKSAS]]=\"\"),\"\",TBL_Summary[[#This Row],[APRĒĶINĀTĀS IZMAKSAS]]-TBL_Summary[[#This Row],[FAKTISKĀS IZMAKSAS]])","v":""},{"$f":"TBL_Summary[[#This Row],[APRĒĶINĀTĀS IZMAKSAS]]/SUM(TBL_Summary[APRĒĶINĀTĀS IZMAKSAS])","v":{"v":0.015126050420168067,"d":"1.5%"}},{"$nulls":3},"Transports",{"$f":"TBL_Transports[[#Totals],[PROGNOZĒTIE]]","v":450},{"$f":"TBL_Transports[[#Totals],[FAKTISKIE]]","v":0},449.9,10,10,"Transports"]
[null,"Kopsumma",{"$f":"SUBTOTAL(109,TBL_Summary[APRĒĶINĀTĀS IZMAKSAS])","v":{"v":29750,"d":"29,750 EUR"}},{"$f":"SUBTOTAL(109,TBL_Summary[FAKTISKĀS IZMAKSAS])","v":{"v":15700,"d":"15,700 EUR"}},{"$f":"TBL_Summary[[#Totals],[APRĒĶINĀTĀS IZMAKSAS]]-TBL_Summary[[#Totals],[FAKTISKĀS IZMAKSAS]]","v":{"v":14050,"d":"14,050 EUR"}},{"$f":"SUBTOTAL(109,TBL_Summary[BUDŽETA %])","v":{"v":1,"d":"100%"}}]

{"sheet":"Budžeta informācija","index":1,"n_rows":91,"n_cols":6,"rows_kept":91}
[{"$nulls":5}," "]
[null,"BUDŽETA INFORMĀCIJA"]
[]
[null,"SVINĪBAS","PROGNOZĒTIE","FAKTISKIE","NOVIRZE"]
[null,"Norises vieta un noma",{"v":8000,"d":"8,000.00 EUR"},{"v":7800,"d":"7,800.00 EUR"},{"$f":"IF(OR(TBL_Svinības[[#This Row],[PROGNOZĒTIE]]=\"\",TBL_Svinības[[#This Row],[FAKTISKIE]]=\"\"),\"\",TBL_Svinības[[#This Row],[PROGNOZĒTIE]]-TBL_Svinības[[#This Row],[FAKTISKIE]])","v":{"v":200,"d":"200.00 EUR"}}]
[null,"Pārtika un serviss",{"v":4000,"d":"4,000.00 EUR"},{"v":4200,"d":"4,200.00 EUR"},{"$f":"IF(OR(TBL_Svinības[[#This Row],[PROGNOZĒTIE]]=\"\",TBL_Svinības[[#This Row],[FAKTISKIE]]=\"\"),\"\",TBL_Svinības[[#This Row],[PROGNOZĒTIE]]-TBL_Svinības[[#This Row],[FAKTISKIE]])","v":{"v":-200,"d":"-200.00 EUR"}}]
[null,"Dzērieni",{"v":1000,"d":"1,000.00 EUR"},{"v":800,"d":"800.00 EUR"},{"$f":"IF(OR(TBL_Svinības[[#This Row],[PROGNOZĒTIE]]=\"\",TBL_Svinības[[#This Row],[FAKTISKIE]]=\"\"),\"\",TBL_Svinības[[#This Row],[PROGNOZĒTIE]]-TBL_Svinības[[#This Row],[FAKTISKIE]])","v":{"v":200,"d":"200.00 EUR"}}]
[null,"Kūka",{"v":1000,"d":"1,000.00 EUR"},null,{"$f":"IF(OR(TBL_Svinības[[#This Row],[PROGNOZĒTIE]]=\"\",TBL_Svinības[[#This Row],[FAKTISKIE]]=\"\"),\"\",TBL_Svinības[[#This Row],[PROGNOZĒTIE]]-TBL_Svinības[[#This Row],[FAKTISKIE]])","v":""}]
[null,"Dažādas maksas",{"v":500,"d":"500.00 EUR"},null,{"$f":"IF(OR(TBL_Svinības[[#This Row],[PROGNOZĒTIE]]=\"\",TBL_Svinības[[#This Row],[FAKTISKIE]]=\"\"),\"\",TBL_Svinības[[#This Row],[PROGNOZĒTIE]]-TBL_Svinības[[#This Row],[FAKTISKIE]])","v":""}]
[null,"SVINĪBAS KOPĀ",{"$f":"SUBTOTAL(109,TBL_Svinības[PROGNOZĒTIE])","v":{"v":14500,"d":"14,500.00 EUR"}},{"$f":"SUBTOTAL(109,TBL_Svinības[FAKTISKIE])","v":{"v":12800,"d":"12,800.00 EUR"}},{"$f":"TBL_Svinības[[#Totals],[PROGNOZĒTIE]]-TBL_Svinības[[#Totals],[FAKTISKIE]]","v":{"v":1700,"d":"1,700.00 EUR"}}]
[]
[]
[null,"APĢĒRBS","PROGNOZĒTIE","FAKTISKIE","NOVIRZE"]
[null,"Smokings, uzvalks un/vai kleitas",{"v":3000,"d":"3,000.00 EUR"},{"v":2900,"d":"2,900.00 EUR"},{"$f":"IF(OR(TBL_Apģērbs[[#This Row],[PROGNOZĒTIE]]=\"\",TBL_Apģērbs[[#This Row],[FAKTISKIE]]=\"\"),\"\",TBL_Apģērbs[[#This Row],[PROGNOZĒTIE]]-TBL_Apģērbs[[#This Row],[FAKTISKIE]])","v":{"v":100,"d":"100.00 EUR"}}]
[null,"Izmaiņas",{"v":100,"d":"100.00 EUR"},null,{"$f":"IF(OR(TBL_Apģērbs[[#This Row],[PROGNOZĒTIE]]=\"\",TBL_Apģērbs[[#This Row],[FAKTISKIE]]=\"\"),\"\",TBL_Apģērbs[[#This Row],[PROGNOZĒTIE]]-TBL_Apģērbs[[#This Row],[FAKTISKIE]])","v":""}]
[null,"Galvasrota un plīvurs",{"v":200,"d":"200.00 EUR"},null,{"$f":"IF(OR(TBL_Apģērbs[[#This Row],[PROGNOZĒTIE]]=\"\",TBL_Apģērbs[[#This Row],[FAKTISKIE]]=\"\"),\"\",TBL_Apģērbs[[#This Row],[PROGNOZĒTIE]]-TBL_Apģērbs[[#This Row],[FAKTISKIE]])","v":""}]
[null,"Aksesuāri",{"v":100,"d":"100.00 EUR"},null,{"$f":"IF(OR(TBL_Apģērbs[[#This Row],[PROGNOZĒTIE]]=\"\",TBL_Apģērbs[[#This Row],[FAKTISKIE]]=\"\"),\"\",TBL_Apģērbs[[#This Row],[PROGNOZĒTIE]]-TBL_Apģērbs[[#This Row],[FAKTISKIE]])","v":""}]
[null,"Mati un grims",{"v":500,"d":"500.00 EUR"},null,{"$f":"IF(OR(TBL_Apģērbs[[#This Row],[PROGNOZĒTIE]]=\"\",TBL_Apģērbs[[#This Row],[FAKTISKIE]]=\"\"),\"\",TBL_Apģērbs[[#This Row],[PROGNOZĒTIE]]-TBL_Apģērbs[[#This Row],[FAKTISKIE]])","v":""}]
[null,"Dažādas maksas",{"v":100,"d":"100.00 EUR"},null,{"$f":"IF(OR(TBL_Apģērbs[[#This Row],[PROGNOZĒTIE]]=\"\",TBL_Apģērbs[[#This Row],[FAKTISKIE]]=\"\"),\"\",TBL_Apģērbs[[#This Row],[PROGNOZĒTIE]]-TBL_Apģērbs[[#This Row],[FAKTISKIE]])","v":""}]
[null,"APĢĒRBS KOPĀ",{"$f":"SUBTOTAL(109,TBL_Apģērbs[PROGNOZĒTIE])","v":{"v":4000,"d":"4,000.00 EUR"}},{"$f":"SUBTOTAL(109,TBL_Apģērbs[FAKTISKIE])","v":{"v":2900,"d":"2,900.00 EUR"}},{"$f":"TBL_Apģērbs[[#Totals],[PROGNOZĒTIE]]-TBL_Apģērbs[[#Totals],[FAKTISKIE]]","v":{"v":1100,"d":"1,100.00 EUR"}}]
[]
[]
[null,"ZIEDI UN ROTĀJUMI","PROGNOZĒTIE","FAKTISKIE","NOVIRZE"]
[null,"Ziedu kārtojumi ceremonijai",{"v":1000,"d":"1,000.00 EUR"},null,{"$f":"IF(OR(TBL_ZiediUnRotājumi[[#This Row],[PROGNOZĒTIE]]=\"\",TBL_ZiediUnRotājumi[[#This Row],[FAKTISKIE]]=\"\"),\"\",TBL_ZiediUnRotājumi[[#This Row],[PROGNOZĒTIE]]-TBL_ZiediUnRotājumi[[#This Row],[FAKTISKIE]])","v":""}]
[null,"Puķu meitenes pumpuri un grozs",{"v":500,"d":"500.00 EUR"},null,{"$f":"IF(OR(TBL_ZiediUnRotājumi[[#This Row],[PROGNOZĒTIE]]=\"\",TBL_ZiediUnRotājumi[[#This Row],[FAKTISKIE]]=\"\"),\"\",TBL_ZiediUnRotājumi[[#This Row],[PROGNOZĒTIE]]-TBL_ZiediUnRotājumi[[#This Row],[FAKTISKIE]])","v":""}]
[null,"Gredzenu spilventiņš",{"v":100,"d":"100.00 EUR"},null,{"$f":"IF(OR(TBL_ZiediUnRotājumi[[#This Row],[PROGNOZĒTIE]]=\"\",TBL_ZiediUnRotājumi[[#This Row],[FAKTISKIE]]=\"\"),\"\",TBL_ZiediUnRotājumi[[#This Row],[PROGNOZĒTIE]]-TBL_ZiediUnRotājumi[[#This Row],[FAKTISKIE]])","v":""}]
[null,"Pušķi",{"v":500,"d":"500.00 EUR"},null,{"$f":"IF(OR(TBL_ZiediUnRotājumi[[#This Row],[PROGNOZĒTIE]]=\"\",TBL_ZiediUnRotājumi[[#This Row],[FAKTISKIE]]=\"\"),\"\",TBL_ZiediUnRotājumi[[#This Row],[PROGNOZĒTIE]]-TBL_ZiediUnRotājumi[[#This Row],[FAKTISKIE]])","v":""}]
[null,"Ziedu piespraudes apģērbam",{"v":100,"d":"100.00 EUR"},null,{"$f":"IF(OR(TBL_ZiediUnRotājumi[[#This Row],[PROGNOZĒTIE]]=\"\",TBL_ZiediUnRotājumi[[#This Row],[FAKTISKIE]]=\"\"),\"\",TBL_ZiediUnRotājumi[[#This Row],[PROGNOZĒTIE]]-TBL_ZiediUnRotājumi[[#This Row],[FAKTISKIE]])","v":""}]
[null,"Ziedu pušķi",{"v":200,"d":"200.00 EUR"},null,{"$f":"IF(OR(TBL_ZiediUnRotājumi[[#This Row],[PROGNOZĒTIE]]=\"\",TBL_ZiediUnRotājumi[[#This Row],[FAKTISKIE]]=\"\"),\"\",TBL_ZiediUnRotājumi[[#This Row],[PROGNOZĒTIE]]-TBL_ZiediUnRotājumi[[#This Row],[FAKTISKIE]])","v":""}]
[null,"Uzņemšanas rotājumi",{"v":300,"d":"300.00 EUR"},null,{"$f":"IF(OR(TBL_ZiediUnRotājumi[[#This Row],[PROGNOZĒTIE]]=\"\",TBL_ZiediUnRotājumi[[#This Row],[FAKTISKIE]]=\"\"),\"\",TBL_ZiediUnRotājumi[[#This Row],[PROGNOZĒTIE]]-TBL_ZiediUnRotājumi[[#This Row],[FAKTISKIE]])","v":""}]
[null,"Apgaismojums",{"v":200,"d":"200.00 EUR"},null,{"$f":"IF(OR(TBL_ZiediUnRotājumi[[#This Row],[PROGNOZĒTIE]]=\"\",TBL_ZiediUnRotājumi[[#This Row],[FAKTISKIE]]=\"\"),\"\",TBL_ZiediUnRotājumi[[#This Row],[PROGNOZĒTIE]]-TBL_ZiediUnRotājumi[[#This Row],[FAKTISKIE]])","v":""}]
[null,"Dažādas maksas",{"v":100,"d":"100.00 EUR"},null,{"$f":"IF(OR(TBL_ZiediUnRotājumi[[#This Row],[PROGNOZĒTIE]]=\"\",TBL_ZiediUnRotājumi[[#This Row],[FAKTISKIE]]=\"\"),\"\",TBL_ZiediUnRotājumi[[#This Row],[PROGNOZĒTIE]]-TBL_ZiediUnRotājumi[[#This Row],[FAKTISKIE]])","v":""}]
[null,"ZIEDI UN ROTĀJUMI KOPĀ",{"$f":"SUBTOTAL(109,TBL_ZiediUnRotājumi[PROGNOZĒTIE])","v":{"v":3000,"d":"3,000.00 EUR"}},{"$f":"SUBTOTAL(109,TBL_ZiediUnRotājumi[FAKTISKIE])","v":{"v":0,"d":"0.00 EUR"}},{"$f":"TBL_ZiediUnRotājumi[[#Totals],[PROGNOZĒTIE]]-TBL_ZiediUnRotājumi[[#Totals],[FAKTISKIE]]","v":{"v":3000,"d":"3,000.00 EUR"}}]
[]
[]
[null,"MŪZIKA","PROGNOZĒTIE","FAKTISKIE","NOVIRZE"]
[null,"Ceremonijas mūziķi",{"v":700,"d":"700.00 EUR"},null,{"$f":"IF(OR(TBL_Mūzika[[#This Row],[PROGNOZĒTIE]]=\"\",TBL_Mūzika[[#This Row],[FAKTISKIE]]=\"\"),\"\",TBL_Mūzika[[#This Row],[PROGNOZĒTIE]]-TBL_Mūzika[[#This Row],[FAKTISKIE]])","v":""}]
[null,"Kokteiļu stundas mūziķi",{"v":300,"d":"300.00 EUR"},null,{"$f":"IF(OR(TBL_Mūzika[[#This Row],[PROGNOZĒTIE]]=\"\",TBL_Mūzika[[#This Row],[FAKTISKIE]]=\"\"),\"\",TBL_Mūzika[[#This Row],[PROGNOZĒTIE]]-TBL_Mūzika[[#This Row],[FAKTISKIE]])","v":""}]
[null,"Svinību grupa, dīdžejs vai izklaide",{"v":200,"d":"200.00 EUR"},null,{"$f":"IF(OR(TBL_Mūzika[[#This Row],[PROGNOZĒTIE]]=\"\",TBL_Mūzika[[#This Row],[FAKTISKIE]]=\"\"),\"\",TBL_Mūzika[[#This Row],[PROGNOZĒTIE]]-TBL_Mūzika[[#This Row],[FAKTISKIE]])","v":""}]
[null,"Skaņas sistēmas vai deju grīdas noma",{"v":400,"d":"400.00 EUR"},null,{"$f":"IF(OR(TBL_Mūzika[[#This Row],[PROGNOZĒTIE]]=\"\",TBL_Mūzika[[#This Row],[FAKTISKIE]]=\"\"),\"\",TBL_Mūzika[[#This Row],[PROGNOZĒTIE]]-TBL_Mūzika[[#This Row],[FAKTISKIE]])","v":""}]
[null,"Dažādas maksas",{"v":200,"d":"200.00 EUR"},null,{"$f":"IF(OR(TBL_Mūzika[[#This Row],[PROGNOZĒTIE]]=\"\",TBL_Mūzika[[#This Row],[FAKTISKIE]]=\"\"),\"\",TBL_Mūzika[[#This Row],[PROGNOZĒTIE]]-TBL_Mūzika[[#This Row],[FAKTISKIE]])","v":""}]
[null,"MŪZIKA KOPĀ",{"$f":"SUBTOTAL(109,TBL_Mūzika[PROGNOZĒTIE])","v":{"v":1800,"d":"1,800.00 EUR"}},{"$f":"SUBTOTAL(109,TBL_Mūzika[FAKTISKIE])","v":{"v":0,"d":"0.00 EUR"}},{"$f":"TBL_Mūzika[[#Totals],[PROGNOZĒTIE]]-TBL_Mūzika[[#Totals],[FAKTISKIE]]","v":{"v":1800,"d":"1,800.00 EUR"}}]
[]
[]
[null,"FOTOGRAFĒŠANA UN VIDEO","PROGNOZĒTIE","FAKTISKIE","NOVIRZE"]
[null,"Fotografēšana",{"v":1000,"d":"1,000.00 EUR"},null,{"$f":"IF(OR(TBL_FotografēšanaUnVideo[[#This Row],[PROGNOZĒTIE]]=\"\",TBL_FotografēšanaUnVideo[[#This Row],[FAKTISKIE]]=\"\"),\"\",TBL_FotografēšanaUnVideo[[#This Row],[PROGNOZĒTIE]]-TBL_FotografēšanaUnVideo[[#This Row],[FAKTISKIE]])","v":""}]
[null,"Video uzņemšana",{"v":800,"d":"800.00 EUR"},null,{"$f":"IF(OR(TBL_FotografēšanaUnVideo[[#This Row],[PROGNOZĒTIE]]=\"\",TBL_FotografēšanaUnVideo[[#This Row],[FAKTISKIE]]=\"\"),\"\",TBL_FotografēšanaUnVideo[[#This Row],[PROGNOZĒTIE]]-TBL_FotografēšanaUnVideo[[#This Row],[FAKTISKIE]])","v":""}]
[null,"Papildu izdrukas un albumi",{"v":500,"d":"500.00 EUR"},null,{"$f":"IF(OR(TBL_FotografēšanaUnVideo[[#This Row],[PROGNOZĒTIE]]=\"\",TBL_FotografēšanaUnVideo[[#This Row],[FAKTISKIE]]=\"\"),\"\",TBL_FotografēšanaUnVideo[[#This Row],[PROGNOZĒTIE]]-TBL_FotografēšanaUnVideo[[#This Row],[FAKTISKIE]])","v":""}]
[null,"Dažādas maksas",{"v":200,"d":"200.00 EUR"},null,{"$f":"IF(OR(TBL_FotografēšanaUnVideo[[#This Row],[PROGNOZĒTIE]]=\"\",TBL_FotografēšanaUnVideo[[#This Row],[FAKTISKIE]]=\"\"),\"\",TBL_FotografēšanaUnVideo[[#This Row],[PROGNOZĒTIE]]-TBL_FotografēšanaUnVideo[[#This Row],[FAKTISKIE]])","v":""}]
[null,"FOTOGRAFĒŠANA UN VIDEO KOPĀ",{"$f":"SUBTOTAL(109,TBL_FotografēšanaUnVideo[PROGNOZĒTIE])","v":{"v":2500,"d":"2,500.00 EUR"}},{"$f":"SUBTOTAL(109,TBL_FotografēšanaUnVideo[FAKTISKIE])","v":{"v":0,"d":"0.00 EUR"}},{"$f":"TBL_FotografēšanaUnVideo[[#Totals],[PROGNOZĒTIE]]-TBL_FotografēšanaUnVideo[[#Totals],[FAKTISKIE]]","v":{"v":2500,"d":"2,500.00 EUR"}}]
[]
[]
[null,"SUVENĪRI UN DĀVANAS","PROGNOZĒTIE","FAKTISKIE","NOVIRZE"]
[null,"Iepazīšanās dāvanas",{"v":700,"d":"700.00 EUR"},null,{"$f":"IF(OR(TBL_SuvenīriUnDāvanas[[#This Row],[PROGNOZĒTIE]]=\"\",TBL_SuvenīriUnDāvanas[[#This Row],[FAKTISKIE]]=\"\"),\"\",TBL_SuvenīriUnDāvanas[[#This Row],[PROGNOZĒTIE]]-TBL_SuvenīriUnDāvanas[[#This Row],[FAKTISKIE]])","v":""}]
[null,"Ballītes dāvanas",{"v":200,"d":"200.00 EUR"},null,{"$f":"IF(OR(TBL_SuvenīriUnDāvanas[[#This Row],[PROGNOZĒTIE]]=\"\",TBL_SuvenīriUnDāvanas[[#This Row],[FAKTISKIE]]=\"\"),\"\",TBL_SuvenīriUnDāvanas[[#This Row],[PROGNOZĒTIE]]-TBL_SuvenīriUnDāvanas[[#This Row],[FAKTISKIE]])","v":""}]
[null,"Dažādas maksas",{"v":200,"d":"200.00 EUR"},null,{"$f":"IF(OR(TBL_SuvenīriUnDāvanas[[#This Row],[PROGNOZĒTIE]]=\"\",TBL_SuvenīriUnDāvanas[[#This Row],[FAKTISKIE]]=\"\"),\"\",TBL_SuvenīriUnDāvanas[[#This Row],[PROGNOZĒTIE]]-TBL_SuvenīriUnDāvanas[[#This Row],[FAKTISKIE]])","v":""}]
[null,"SUVENĪRI UN DĀVANAS KOPĀ",{"$f":"SUBTOTAL(109,TBL_SuvenīriUnDāvanas[PROGNOZĒTIE])","v":{"v":1100,"d":"1,100.00 EUR"}},{"$f":"SUBTOTAL(109,TBL_SuvenīriUnDāvanas[FAKTISKIE])","v":{"v":0,"d":"0.00 EUR"}},{"$f":"TBL_SuvenīriUnDāvanas[[#Totals],[PROGNOZĒTIE]]-TBL_SuvenīriUnDāvanas[[#Totals],[FAKTISKIE]]","v":{"v":1100,"d":"1,100.00 EUR"}}]
[]
[]
[null,"CEREMONIJA","PROGNOZĒTIE","FAKTISKIE","NOVIRZE"]
[null,"Vietas maksa",{"v":500,"d":"500.00 EUR"},null,{"$f":"IF(OR(TBL_Ceremonija[[#This Row],[PROGNOZĒTIE]]=\"\",TBL_Ceremonija[[#This Row],[FAKTISKIE]]=\"\"),\"\",TBL_Ceremonija[[#This Row],[PROGNOZĒTIE]]-TBL_Ceremonija[[#This Row],[FAKTISKIE]])","v":""}]
[null,"Vadītāja maksa vai ziedojums baznīcai",{"v":200,"d":"200.00 EUR"},null,{"$f":"IF(OR(TBL_Ceremonija[[#This Row],[PROGNOZĒTIE]]=\"\",TBL_Ceremonija[[#This Row],[FAKTISKIE]]=\"\"),\"\",TBL_Ceremonija[[#This Row],[PROGNOZĒTIE]]-TBL_Ceremonija[[#This Row],[FAKTISKIE]])","v":""}]
[null,"Dažādas maksas",{"v":100,"d":"100.00 EUR"},null,{"$f":"IF(OR(TBL_Ceremonija[[#This Row],[PROGNOZĒTIE]]=\"\",TBL_Ceremonija[[#This Row],[FAKTISKIE]]=\"\"),\"\",TBL_Ceremonija[[#This Row],[PROGNOZĒTIE]]-TBL_Ceremonija[[#This Row],[FAKTISKIE]])","v":""}]
[null,"CEREMONIJA KOPĀ",{"$f":"SUBTOTAL(109,TBL_Ceremonija[PROGNOZĒTIE])","v":{"v":800,"d":"800.00 EUR"}},{"$f":"SUBTOTAL(109,TBL_Ceremonija[FAKTISKIE])","v":{"v":0,"d":"0.00 EUR"}},{"$f":"TBL_Ceremonija[[#Totals],[PROGNOZĒTIE]]-TBL_Ceremonija[[#Totals],[FAKTISKIE]]","v":{"v":800,"d":"800.00 EUR"}}]
[]
[]
[null,"VĒSTUĻPAPĪRS","PROGNOZĒTIE","FAKTISKIE","NOVIRZE"]
[null,"Kāzu ielūgumi",{"v":50,"d":"50.00 EUR"},null,{"$f":"IF(OR(TBL_Vēstuļpapīrs[[#This Row],[PROGNOZĒTIE]]=\"\",TBL_Vēstuļpapīrs[[#This Row],[FAKTISKIE]]=\"\"),\"\",TBL_Vēstuļpapīrs[[#This Row],[PROGNOZĒTIE]]-TBL_Vēstuļpapīrs[[#This Row],[FAKTISKIE]])","v":""}]
[null,"Ielūgumi un resursu rezervēšanas protokols",{"v":100,"d":"100.00 EUR"},null,{"$f":"IF(OR(TBL_Vēstuļpapīrs[[#This Row],[PROGNOZĒTIE]]=\"\",TBL_Vēstuļpapīrs[[#This Row],[FAKTISKIE]]=\"\"),\"\",TBL_Vēstuļpapīrs[[#This Row],[PROGNOZĒTIE]]-TBL_Vēstuļpapīrs[[#This Row],[FAKTISKIE]])","v":""}]
[null,"Programmiņas",{"v":50,"d":"50.00 EUR"},null,{"$f":"IF(OR(TBL_Vēstuļpapīrs[[#This Row],[PROGNOZĒTIE]]=\"\",TBL_Vēstuļpapīrs[[#This Row],[FAKTISKIE]]=\"\"),\"\",TBL_Vēstuļpapīrs[[#This Row],[PROGNOZĒTIE]]-TBL_Vēstuļpapīrs[[#This Row],[FAKTISKIE]])","v":""}]
[null,"Sēdvietu kartes un vietkartes",{"v":50,"d":"50.00 EUR"},null,{"$f":"IF(OR(TBL_Vēstuļpapīrs[[#This Row],[PROGNOZĒTIE]]=\"\",TBL_Vēstuļpapīrs[[#This Row],[FAKTISKIE]]=\"\"),\"\",TBL_Vēstuļpapīrs[[#This Row],[PROGNOZĒTIE]]-TBL_Vēstuļpapīrs[[#This Row],[FAKTISKIE]])","v":""}]
[null,"Ēdienkartes",{"v":50,"d":"50.00 EUR"},null,{"$f":"IF(OR(TBL_Vēstuļpapīrs[[#This Row],[PROGNOZĒTIE]]=\"\",TBL_Vēstuļpapīrs[[#This Row],[FAKTISKIE]]=\"\"),\"\",TBL_Vēstuļpapīrs[[#This Row],[PROGNOZĒTIE]]-TBL_Vēstuļpapīrs[[#This Row],[FAKTISKIE]])","v":""}]
[null,"Pateicības kartiņas",{"v":50,"d":"50.00 EUR"},null,{"$f":"IF(OR(TBL_Vēstuļpapīrs[[#This Row],[PROGNOZĒTIE]]=\"\",TBL_Vēstuļpapīrs[[#This Row],[FAKTISKIE]]=\"\"),\"\",TBL_Vēstuļpapīrs[[#This Row],[PROGNOZĒTIE]]-TBL_Vēstuļpapīrs[[#This Row],[FAKTISKIE]])","v":""}]
[null,"Pasta izdevumi",{"v":50,"d":"50.00 EUR"},null,{"$f":"IF(OR(TBL_Vēstuļpapīrs[[#This Row],[PROGNOZĒTIE]]=\"\",TBL_Vēstuļpapīrs[[#This Row],[FAKTISKIE]]=\"\"),\"\",TBL_Vēstuļpapīrs[[#This Row],[PROGNOZĒTIE]]-TBL_Vēstuļpapīrs[[#This Row],[FAKTISKIE]])","v":""}]
[null,"Dažādas maksas",{"v":100,"d":"100.00 EUR"},null,{"$f":"IF(OR(TBL_Vēstuļpapīrs[[#This Row],[PROGNOZĒTIE]]=\"\",TBL_Vēstuļpapīrs[[#This Row],[FAKTISKIE]]=\"\"),\"\",TBL_Vēstuļpapīrs[[#This Row],[PROGNOZĒTIE]]-TBL_Vēstuļpapīrs[[#This Row],[FAKTISKIE]])","v":""}]
[null,"VĒSTUĻPAPĪRS KOPĀ",{"$f":"SUBTOTAL(109,TBL_Vēstuļpapīrs[PROGNOZĒTIE])","v":{"v":500,"d":"500.00 EUR"}},{"$f":"SUBTOTAL(109,TBL_Vēstuļpapīrs[FAKTISKIE])","v":{"v":0,"d":"0.00 EUR"}},{"$f":"TBL_Vēstuļpapīrs[[#Totals],[PROGNOZĒTIE]]-TBL_Vēstuļpapīrs[[#Totals],[FAKTISKIE]]","v":{"v":500,"d":"500.00 EUR"}}]
[]
[]
[null,"LAULĪBU GREDZENI","PROGNOZĒTIE","FAKTISKIE","NOVIRZE"]
[null,"Laulību gredzeni",{"v":1000,"d":"1,000.00 EUR"},null,{"$f":"IF(OR(TBL_LaulībuGredzeni[[#This Row],[PROGNOZĒTIE]]=\"\",TBL_LaulībuGredzeni[[#This Row],[FAKTISKIE]]=\"\"),\"\",TBL_LaulībuGredzeni[[#This Row],[PROGNOZĒTIE]]-TBL_LaulībuGredzeni[[#This Row],[FAKTISKIE]])","v":""}]
[null,"Gredzenu aksesuāri",{"v":100,"d":"100.00 EUR"},null,{"$f":"IF(OR(TBL_LaulībuGredzeni[[#This Row],[PROGNOZĒTIE]]=\"\",TBL_LaulībuGredzeni[[#This Row],[FAKTISKIE]]=\"\"),\"\",TBL_LaulībuGredzeni[[#This Row],[PROGNOZĒTIE]]-TBL_LaulībuGredzeni[[#This Row],[FAKTISKIE]])","v":""}]
[null,"LAULĪBU GREDZENI KOPĀ",{"$f":"SUBTOTAL(109,TBL_LaulībuGredzeni[PROGNOZĒTIE])","v":{"v":1100,"d":"1,100.00 EUR"}},{"$f":"SUBTOTAL(109,TBL_LaulībuGredzeni[FAKTISKIE])","v":{"v":0,"d":"0.00 EUR"}},{"$f":"TBL_LaulībuGredzeni[[#Totals],[PROGNOZĒTIE]]-TBL_LaulībuGredzeni[[#Totals],[FAKTISKIE]]","v":{"v":1100,"d":"1,100.00 EUR"}}]
[]
[]
[null,"TRANSPORTS  ","PROGNOZĒTIE","FAKTISKIE","NOVIRZE"]
[null,"Galvenās automašīnas noma",{"v":100,"d":"100.00 EUR"},null,{"$f":"IF(OR(TBL_Transports[[#This Row],[PROGNOZĒTIE]]=\"\",TBL_Transports[[#This Row],[FAKTISKIE]]=\"\"),\"\",TBL_Transports[[#This Row],[PROGNOZĒTIE]]-TBL_Transports[[#This Row],[FAKTISKIE]])","v":""}]
[null,"Viesu automašīnas noma",{"v":100,"d":"100.00 EUR"},null,{"$f":"IF(OR(TBL_Transports[[#This Row],[PROGNOZĒTIE]]=\"\",TBL_Transports[[#This Row],[FAKTISKIE]]=\"\"),\"\",TBL_Transports[[#This Row],[PROGNOZĒTIE]]-TBL_Transports[[#This Row],[FAKTISKIE]])","v":""}]
[null,"Transporta pakalpojumi ārpus pilsētas viesiem",{"v":100,"d":"100.00 EUR"},null,{"$f":"IF(OR(TBL_Transports[[#This Row],[PROGNOZĒTIE]]=\"\",TBL_Transports[[#This Row],[FAKTISKIE]]=\"\"),\"\",TBL_Transports[[#This Row],[PROGNOZĒTIE]]-TBL_Transports[[#This Row],[FAKTISKIE]])","v":""}]
[null,"Automašīnu novietošanas stāvvietā pakalpojumi",{"v":50,"d":"50.00 EUR"},null,{"$f":"IF(OR(TBL_Transports[[#This Row],[PROGNOZĒTIE]]=\"\",TBL_Transports[[#This Row],[FAKTISKIE]]=\"\"),\"\",TBL_Transports[[#This Row],[PROGNOZĒTIE]]-TBL_Transports[[#This Row],[FAKTISKIE]])","v":""}]
[null,"Dažādas maksas",{"v":100,"d":"100.00 EUR"},null,{"$f":"IF(OR(TBL_Transports[[#This Row],[PROGNOZĒTIE]]=\"\",TBL_Transports[[#This Row],[FAKTISKIE]]=\"\"),\"\",TBL_Transports[[#This Row],[PROGNOZĒTIE]]-TBL_Transports[[#This Row],[FAKTISKIE]])","v":""}]
[null,"TRANSPORTS KOPĀ",{"$f":"SUBTOTAL(109,TBL_Transports[PROGNOZĒTIE])","v":{"v":450,"d":"450.00 EUR"}},{"$f":"SUBTOTAL(109,TBL_Transports[FAKTISKIE])","v":{"v":0,"d":"0.00 EUR"}},{"$f":"TBL_Transports[[#Totals],[PROGNOZĒTIE]]-TBL_Transports[[#Totals],[FAKTISKIE]]","v":{"v":450,"d":"450.00 EUR"}}]